[Event "Titled Tuesday Blitz November 01 Early 2022"]
[White "Wessendorf, Thomas, Dr."]
[Black "Shubenkova, Veronika"]
[WhiteFideId "4604270"]
[BlackFideId "44124040"]
[WhiteElo "2280"]
[BlackElo "2027"]
[Result "0-1"]
[Round "05"]
[TimeControl "180+1"]
[Date "2022.11.02"]
[WhiteClock "0:00:08"]
[BlackClock "0:00:45"]

1. e4 {[%clk 0:03:00]}  c6 {[%clk 0:02:59]} 2. d4 {[%clk 0:02:58]}  d5 {[%clk 0:02:59]} 3. Nd2 {[%clk 0:02:58]}  dxe4 {[%clk 0:02:59]} 4. Nxe4 {[%clk 0:02:58]}  Bf5 {[%clk 0:02:59]} 5. Ng3 {[%clk 0:02:58]}  Bg6 {[%clk 0:03:00]} 6. h4 {[%clk 0:02:58]}  h6 {[%clk 0:03:00]} 7. Nf3 {[%clk 0:02:59]}  Nd7 {[%clk 0:02:59]} 8. h5 {[%clk 0:02:59]}  Bh7 {[%clk 0:03:00]} 9. Bd3 {[%clk 0:02:59]}  Bxd3 {[%clk 0:03:00]} 10. Qxd3 {[%clk 0:03:00]}  Ngf6 {[%clk 0:03:00]} 11. Bd2 {[%clk 0:02:56]}  e6 {[%clk 0:03:01]} 12. O-O-O {[%clk 0:02:56]}  Bd6 {[%clk 0:03:01]} 13. Ne4 {[%clk 0:02:55]}  Nxe4 {[%clk 0:03:00]} 14. Qxe4 {[%clk 0:02:56]}  Nf6 {[%clk 0:03:01]} 15. Qe2 {[%clk 0:02:55]}  Qc7 {[%clk 0:03:00]} 16. Kb1 {[%clk 0:02:54]}  O-O-O {[%clk 0:03:00]} 17. c4 {[%clk 0:02:51]}  Bf4 {[%clk 0:03:00]} 18. Bc3 {[%clk 0:02:51]}  c5 {[%clk 0:02:55]} 19. g3 {[%clk 0:02:48]}  Bd6 {[%clk 0:02:55]} 20. Ne5 {[%clk 0:02:28]}  Bxe5 {[%clk 0:02:53]} 21. dxe5 {[%clk 0:02:27]}  Nd7 {[%clk 0:02:52]} 22. Rd6 {[%clk 0:02:16]}  Nb6 {[%clk 0:02:49]} 23. Rhd1 {[%clk 0:02:15]}  Rxd6 {[%clk 0:02:39]} 24. exd6 {[%clk 0:02:15]}  Qc6 {[%clk 0:02:38]} 25. Bxg7 {[%clk 0:02:13]}  Rd8 {[%clk 0:02:36]} 26. Be5 {[%clk 0:02:07]}  Qa4 {[%clk 0:02:28]} 27. b3 {[%clk 0:02:04]}  Qc6 {[%clk 0:02:23]} 28. f4 {[%clk 0:02:00]}  Nd7 {[%clk 0:02:20]} 29. g4 {[%clk 0:01:45]}  Rg8 {[%clk 0:02:19]} 30. Bc3 {[%clk 0:01:40]}  f5 {[%clk 0:02:13]} 31. Qxe6 {[%clk 0:01:36]}  Rf8 {[%clk 0:01:46]} 32. g5 {[%clk 0:01:31]}  hxg5 {[%clk 0:01:43]} 33. fxg5 {[%clk 0:01:31]}  Qf3 {[%clk 0:01:43]} 34. Re1 {[%clk 0:01:21]}  b6 {[%clk 0:01:42]} 35. g6 {[%clk 0:01:17]}  Qxc3 {[%clk 0:01:40]} 36. h6 {[%clk 0:00:58]}  Qd3+ {[%clk 0:01:39]} 37. Kb2 {[%clk 0:00:56]}  Qd2+ {[%clk 0:01:38]} 38. Kb1 {[%clk 0:00:53]}  Qxh6 {[%clk 0:01:36]} 39. Rg1 {[%clk 0:00:45]}  Qh2 {[%clk 0:01:28]} 40. Qe3 {[%clk 0:00:36]}  Qe5 {[%clk 0:01:09]} 41. Qxe5 {[%clk 0:00:28]}  Nxe5 {[%clk 0:01:09]} 42. g7 {[%clk 0:00:29]}  Rg8 {[%clk 0:01:09]} 43. Rg5 {[%clk 0:00:28]}  Nd7 {[%clk 0:01:04]} 44. Kc2 {[%clk 0:00:21]}  Kb7 {[%clk 0:01:04]} 45. Kd3 {[%clk 0:00:20]}  Kc6 {[%clk 0:01:04]} 46. Ke3 {[%clk 0:00:21]}  Kxd6 {[%clk 0:01:04]} 47. Kf4 {[%clk 0:00:21]}  Ke6 {[%clk 0:01:02]} 48. Rg6+ {[%clk 0:00:22]}  Kf7 {[%clk 0:01:03]} 49. Rd6 {[%clk 0:00:22]}  Nf6 {[%clk 0:01:03]} 50. Kxf5 {[%clk 0:00:21]}  Nh5 {[%clk 0:00:51]} 51. Rd7+ {[%clk 0:00:21]}  Ke8 {[%clk 0:00:51]} 52. Rxa7 {[%clk 0:00:20]}  Nxg7+ {[%clk 0:00:50]} 53. Ke5 {[%clk 0:00:16]}  Kf8 {[%clk 0:00:43]} 54. Ra8+ {[%clk 0:00:15]}  Ne8 {[%clk 0:00:44]} 55. Kd5 {[%clk 0:00:13]}  Rg6 {[%clk 0:00:44]} 56. a4 {[%clk 0:00:11]}  Ke7 {[%clk 0:00:44]} 57. a5 {[%clk 0:00:11]}  Nc7+ {[%clk 0:00:44]} 58. Ke5 {[%clk 0:00:09]}  Nxa8 {[%clk 0:00:44]} 59. a6 {[%clk 0:00:10]}  Kd7 {[%clk 0:00:44]} 60. Kd5 {[%clk 0:00:08]}  Kc7 {[%clk 0:00:45]} 0-1


[Site "https://www.chess.com"]

[Event "Titled Tuesday Blitz November 01 Early 2022"]
[White "Xiong, Jeffery"]
[Black "Weetik, Vjacheslav"]
[WhiteFideId "2047640"]
[BlackFideId "4153472"]
[WhiteElo "2725"]
[BlackElo "2469"]
[Result "1-0"]
[Round "05"]
[TimeControl "180+1"]
[Date "2022.11.01"]
[WhiteClock "0:01:32"]
[BlackClock "0:00:02"]

1. e4 {[%clk 0:02:42]}  e5 {[%clk 0:02:56]} 2. Nf3 {[%clk 0:02:42]}  Nc6 {[%clk 0:02:56]} 3. Nc3 {[%clk 0:02:42]}  Nf6 {[%clk 0:02:52]} 4. Nxe5 {[%clk 0:02:40]}  Nxe5 {[%clk 0:02:46]} 5. d4 {[%clk 0:02:40]}  Nc6 {[%clk 0:02:14]} 6. e5 {[%clk 0:02:41]}  Bb4 {[%clk 0:01:48]} 7. exf6 {[%clk 0:02:41]}  Qxf6 {[%clk 0:01:47]} 8. Be3 {[%clk 0:02:40]}  d5 {[%clk 0:01:41]} 9. Qd2 {[%clk 0:02:37]}  O-O {[%clk 0:01:36]} 10. a3 {[%clk 0:02:38]}  Bxc3 {[%clk 0:01:35]} 11. Qxc3 {[%clk 0:02:39]}  Bf5 {[%clk 0:01:35]} 12. Be2 {[%clk 0:02:38]}  Qg6 {[%clk 0:01:33]} 13. O-O-O {[%clk 0:02:38]}  Rfe8 {[%clk 0:01:19]} 14. g4 {[%clk 0:02:39]}  Be4 {[%clk 0:01:03]} 15. Rhg1 {[%clk 0:02:38]}  Qd6 {[%clk 0:01:01]} 16. h4 {[%clk 0:02:38]}  Re7 {[%clk 0:00:41]} 17. h5 {[%clk 0:02:27]}  Rae8 {[%clk 0:00:40]} 18. h6 {[%clk 0:02:27]}  gxh6 {[%clk 0:00:25]} 19. Qd2 {[%clk 0:02:26]}  Qg6 {[%clk 0:00:22]} 20. Rg3 {[%clk 0:02:21]}  Re6 {[%clk 0:00:17]} 21. Rh3 {[%clk 0:02:15]}  Qg7 {[%clk 0:00:15]} 22. Bxh6 {[%clk 0:02:13]}  Rxh6 {[%clk 0:00:12]} 23. Qxh6 {[%clk 0:02:08]}  Bxc2 {[%clk 0:00:12]} 24. Rd2 {[%clk 0:01:50]}  Qxh6 {[%clk 0:00:09]} 25. Rxh6 {[%clk 0:01:51]}  Nxd4 {[%clk 0:00:09]} 26. Rxd4 {[%clk 0:01:52]}  Rxe2 {[%clk 0:00:09]} 27. Rxd5 {[%clk 0:01:53]}  Rxf2 {[%clk 0:00:06]} 28. Rd7 {[%clk 0:01:53]}  Bg6 {[%clk 0:00:06]} 29. Rxc7 {[%clk 0:01:53]}  a5 {[%clk 0:00:05]} 30. Rxb7 {[%clk 0:01:52]}  a4 {[%clk 0:00:04]} 31. Rb4 {[%clk 0:01:50]}  Bc2 {[%clk 0:00:04]} 32. Rh3 {[%clk 0:01:38]}  Bg6 {[%clk 0:00:02]} 33. Rc3 {[%clk 0:01:36]}  Rf1+ {[%clk 0:00:02]} 34. Kd2 {[%clk 0:01:36]}  Rf2+ {[%clk 0:00:03]} 35. Ke3 {[%clk 0:01:35]}  Rg2 {[%clk 0:00:02]} 36. Kf3 {[%clk 0:01:35]}  Rg1 {[%clk 0:00:02]} 37. Rxa4 {[%clk 0:01:34]}  Rb1 {[%clk 0:00:02]} 38. b4 {[%clk 0:01:33]}  Kg7 {[%clk 0:00:02]} 39. Ra5 {[%clk 0:01:33]}  Rb2 {[%clk 0:00:01]} 40. Rac5 {[%clk 0:01:33]}  h6 {[%clk 0:00:01]} 41. b5 {[%clk 0:01:33]}  Ra2 {[%clk 0:00:02]} 42. Rb3 {[%clk 0:01:32]}  Rc2 {[%clk 0:00:01]} 43. Rxc2 {[%clk 0:01:31]}  Bxc2 {[%clk 0:00:02]} 44. Rb4 {[%clk 0:01:32]} 1-0


[Site "https://www.chess.com"]

[Event "Titled Tuesday Blitz November 01 Early 2022"]
[White "Yurasova, Daria"]
[Black "Arbunic Castro, Giovanna"]
[WhiteFideId "34146919"]
[BlackFideId "3400549"]
[WhiteElo "2044"]
[BlackElo "1841"]
[Result "1-0"]
[Round "05"]
[TimeControl "180+1"]
[Date "2022.11.02"]
[WhiteClock "0:00:13"]
[BlackClock "0:00:02"]

1. d4 {[%clk 0:03:00]}  Nf6 {[%clk 0:02:56]} 2. Bg5 {[%clk 0:03:00]}  g6 {[%clk 0:02:54]} 3. Bxf6 {[%clk 0:03:00]}  exf6 {[%clk 0:02:53]} 4. e3 {[%clk 0:03:01]}  Bg7 {[%clk 0:02:52]} 5. g3 {[%clk 0:03:01]}  O-O {[%clk 0:02:50]} 6. Bg2 {[%clk 0:03:02]}  d5 {[%clk 0:02:44]} 7. Ne2 {[%clk 0:03:02]}  Re8 {[%clk 0:02:38]} 8. O-O {[%clk 0:03:03]}  Bf5 {[%clk 0:02:37]} 9. Nd2 {[%clk 0:03:01]}  Qd7 {[%clk 0:02:34]} 10. c4 {[%clk 0:02:59]}  c6 {[%clk 0:02:32]} 11. cxd5 {[%clk 0:02:59]}  cxd5 {[%clk 0:02:31]} 12. Qb3 {[%clk 0:02:59]}  Be4 {[%clk 0:02:15]} 13. Nc3 {[%clk 0:02:58]}  Bxg2 {[%clk 0:02:05]} 14. Kxg2 {[%clk 0:02:59]}  Rd8 {[%clk 0:02:05]} 15. Nf3 {[%clk 0:02:43]}  Nc6 {[%clk 0:02:02]} 16. Ne1 {[%clk 0:02:40]}  Rac8 {[%clk 0:01:54]} 17. Nd3 {[%clk 0:02:39]}  Na5 {[%clk 0:01:42]} 18. Qc2 {[%clk 0:02:39]}  f5 {[%clk 0:01:29]} 19. Qe2 {[%clk 0:02:37]}  Nc4 {[%clk 0:01:11]} 20. Rac1 {[%clk 0:02:36]}  Re8 {[%clk 0:01:01]} 21. b3 {[%clk 0:02:35]}  Nd6 {[%clk 0:00:53]} 22. Nxd5 {[%clk 0:02:08]}  Ne4 {[%clk 0:00:50]} 23. N5f4 {[%clk 0:02:00]}  b6 {[%clk 0:00:27]} 24. h4 {[%clk 0:01:42]}  Qb7 {[%clk 0:00:25]} 25. Kg1 {[%clk 0:01:40]}  g5 {[%clk 0:00:22]} 26. Ng2 {[%clk 0:01:21]}  gxh4 {[%clk 0:00:18]} 27. Nxh4 {[%clk 0:01:21]}  Bf6 {[%clk 0:00:16]} 28. Ng2 {[%clk 0:00:27]}  Kh8 {[%clk 0:00:14]} 29. Qf3 {[%clk 0:00:23]}  Qd7 {[%clk 0:00:10]} 30. Rxc8 {[%clk 0:00:19]}  Rxc8 {[%clk 0:00:09]} 31. Rc1 {[%clk 0:00:19]}  Nd2 {[%clk 0:00:08]} 32. Qd1 {[%clk 0:00:18]}  Ne4 {[%clk 0:00:06]} 33. Rxc8+ {[%clk 0:00:18]}  Qxc8 {[%clk 0:00:05]} 34. Qc1 {[%clk 0:00:19]}  Qb7 {[%clk 0:00:02]} 35. Ndf4 {[%clk 0:00:14]}  Be7 {[%clk 0:00:02]} 36. Qc4 {[%clk 0:00:13]} 1-0


[Site "https://www.chess.com"]

[Event "Titled Tuesday Blitz November 01 Early 2022"]
[White "Zhigalko, Sergei"]
[Black "Goryachkina, Aleksandra"]
[WhiteFideId "13502956"]
[BlackFideId "4147103"]
[WhiteElo "2662"]
[BlackElo "2484"]
[Result "1-0"]
[Round "05"]
[TimeControl "180+1"]
[Date "2022.11.01"]
[WhiteClock "0:00:12"]
[BlackClock "0:00:02"]

1. e4 {[%clk 0:03:00]}  e6 {[%clk 0:02:59]} 2. d4 {[%clk 0:03:01]}  d5 {[%clk 0:02:59]} 3. e5 {[%clk 0:03:01]}  c5 {[%clk 0:02:59]} 4. c3 {[%clk 0:03:02]}  Nc6 {[%clk 0:02:59]} 5. Nf3 {[%clk 0:03:03]}  Nge7 {[%clk 0:02:58]} 6. Na3 {[%clk 0:03:03]}  a6 {[%clk 0:02:38]} 7. Nc2 {[%clk 0:03:01]}  Bd7 {[%clk 0:02:36]} 8. h4 {[%clk 0:02:41]}  h6 {[%clk 0:02:29]} 9. h5 {[%clk 0:02:25]}  Nc8 {[%clk 0:02:18]} 10. dxc5 {[%clk 0:02:12]}  Bxc5 {[%clk 0:02:15]} 11. Bd3 {[%clk 0:02:13]}  N8e7 {[%clk 0:01:51]} 12. O-O {[%clk 0:02:08]}  Rc8 {[%clk 0:01:44]} 13. Re1 {[%clk 0:02:02]}  Qb6 {[%clk 0:01:21]} 14. Qe2 {[%clk 0:01:59]}  Qa7 {[%clk 0:01:09]} 15. b4 {[%clk 0:01:48]}  Bb6 {[%clk 0:01:09]} 16. a4 {[%clk 0:01:49]}  Nf5 {[%clk 0:00:49]} 17. Bxf5 {[%clk 0:01:36]}  exf5 {[%clk 0:00:49]} 18. a5 {[%clk 0:01:37]}  Bc7 {[%clk 0:00:48]} 19. Be3 {[%clk 0:01:37]}  Qb8 {[%clk 0:00:47]} 20. Bc5 {[%clk 0:01:38]}  Be6 {[%clk 0:00:41]} 21. Ncd4 {[%clk 0:01:35]}  Bd8 {[%clk 0:00:27]} 22. Nxc6 {[%clk 0:01:20]}  Rxc6 {[%clk 0:00:25]} 23. Nd4 {[%clk 0:01:21]}  Rc8 {[%clk 0:00:20]} 24. Qf3 {[%clk 0:01:18]}  Be7 {[%clk 0:00:06]} 25. Bxe7 {[%clk 0:01:09]}  Kxe7 {[%clk 0:00:06]} 26. Nxf5+ {[%clk 0:01:10]}  Bxf5 {[%clk 0:00:04]} 27. Qxf5 {[%clk 0:01:11]}  Rc6 {[%clk 0:00:04]} 28. Rad1 {[%clk 0:00:56]}  Rd8 {[%clk 0:00:03]} 29. Re3 {[%clk 0:00:52]}  Re6 {[%clk 0:00:03]} 30. Rd4 {[%clk 0:00:49]}  Qc7 {[%clk 0:00:02]} 31. Rf4 {[%clk 0:00:43]}  Ke8 {[%clk 0:00:02]} 32. Qh7 {[%clk 0:00:40]}  Qe7 {[%clk 0:00:02]} 33. Qxg7 {[%clk 0:00:38]}  Rc8 {[%clk 0:00:02]} 34. Ref3 {[%clk 0:00:33]}  Rc7 {[%clk 0:00:02]} 35. Re3 {[%clk 0:00:17]}  Qf8 {[%clk 0:00:02]} 36. Qg4 {[%clk 0:00:17]}  Qe7 {[%clk 0:00:02]} 37. Rf5 {[%clk 0:00:17]}  Kd7 {[%clk 0:00:02]} 38. Qf4 {[%clk 0:00:15]}  Kc8 {[%clk 0:00:02]} 39. g3 {[%clk 0:00:15]}  Kb8 {[%clk 0:00:02]} 40. Kg2 {[%clk 0:00:16]}  Rd7 {[%clk 0:00:03]} 41. Rf3 {[%clk 0:00:15]}  Qd8 {[%clk 0:00:02]} 42. Rxf7 {[%clk 0:00:14]}  Rxf7 {[%clk 0:00:02]} 43. Qxf7 {[%clk 0:00:15]}  Rxe5 {[%clk 0:00:03]} 44. Qf4 {[%clk 0:00:13]}  Qc7 {[%clk 0:00:02]} 45. Re3 {[%clk 0:00:13]}  Re7 {[%clk 0:00:02]} 46. Rxe7 {[%clk 0:00:12]} 1-0


[Site "https://www.chess.com"]

[Event "Titled Tuesday Blitz November 01 Early 2022"]
[White "Zilleruelo Irizarry, Diego"]
[Black "Laohawirapap, Prin"]
[WhiteFideId "3101460"]
[BlackFideId "6205003"]
[WhiteElo "1998"]
[BlackElo "2113"]
[Result "0-1"]
[Round "05"]
[TimeControl "180+1"]
[Date "2022.11.02"]
[WhiteClock "0:00:13"]
[BlackClock "0:01:14"]

1. e4 {[%clk 0:02:56]}  e6 {[%clk 0:02:39]} 2. d4 {[%clk 0:02:56]}  d5 {[%clk 0:02:37]} 3. Nd2 {[%clk 0:02:57]}  Nf6 {[%clk 0:02:35]} 4. e5 {[%clk 0:02:57]}  Nfd7 {[%clk 0:02:36]} 5. Bd3 {[%clk 0:02:57]}  c5 {[%clk 0:02:36]} 6. c3 {[%clk 0:02:58]}  Nc6 {[%clk 0:02:37]} 7. Ne2 {[%clk 0:02:59]}  cxd4 {[%clk 0:02:37]} 8. cxd4 {[%clk 0:02:59]}  f6 {[%clk 0:02:38]} 9. exf6 {[%clk 0:02:52]}  Nxf6 {[%clk 0:02:39]} 10. O-O {[%clk 0:02:52]}  Bd6 {[%clk 0:02:38]} 11. Nf3 {[%clk 0:02:52]}  O-O {[%clk 0:02:38]} 12. Bf4 {[%clk 0:02:53]}  Nh5 {[%clk 0:02:19]} 13. Bxd6 {[%clk 0:02:51]}  Qxd6 {[%clk 0:02:20]} 14. Re1 {[%clk 0:02:30]}  Rxf3 {[%clk 0:02:19]} 15. gxf3 {[%clk 0:02:30]}  Bd7 {[%clk 0:02:19]} 16. Rc1 {[%clk 0:02:08]}  Rf8 {[%clk 0:02:18]} 17. Kg2 {[%clk 0:02:06]}  Qe7 {[%clk 0:02:07]} 18. Rg1 {[%clk 0:01:49]}  Qh4 {[%clk 0:02:03]} 19. Bb1 {[%clk 0:01:03]}  e5 {[%clk 0:01:51]} 20. dxe5 {[%clk 0:00:34]}  Qh3+ {[%clk 0:01:51]} 21. Kh1 {[%clk 0:00:33]}  Qxf3+ {[%clk 0:01:52]} 22. Rg2 {[%clk 0:00:31]}  Bh3 {[%clk 0:01:52]} 23. Qf1 {[%clk 0:00:20]}  Bxg2+ {[%clk 0:01:43]} 24. Qxg2 {[%clk 0:00:20]}  Qxe2 {[%clk 0:01:44]} 25. Qxd5+ {[%clk 0:00:20]}  Kh8 {[%clk 0:01:43]} 26. Qe4 {[%clk 0:00:17]}  Qxe4+ {[%clk 0:01:17]} 27. Bxe4 {[%clk 0:00:18]}  Nxe5 {[%clk 0:01:16]} 28. Bxb7 {[%clk 0:00:18]}  g6 {[%clk 0:01:16]} 29. Rc8 {[%clk 0:00:16]}  Rxc8 {[%clk 0:01:13]} 30. Bxc8 {[%clk 0:00:17]}  Nd3 {[%clk 0:01:14]} 31. b3 {[%clk 0:00:14]}  Nxf2+ {[%clk 0:01:15]} 32. Kg2 {[%clk 0:00:14]}  Nd3 {[%clk 0:01:15]} 33. a4 {[%clk 0:00:14]}  Nc5 {[%clk 0:01:15]} 34. Bg4 {[%clk 0:00:11]}  Nxb3 {[%clk 0:01:14]} 35. Bxh5 {[%clk 0:00:10]}  gxh5 {[%clk 0:01:13]} 36. Kg3 {[%clk 0:00:11]}  Kg7 {[%clk 0:01:13]} 37. Kh4 {[%clk 0:00:12]}  Kg6 {[%clk 0:01:13]} 38. h3 {[%clk 0:00:13]}  Nc5 {[%clk 0:01:13]} 39. a5 {[%clk 0:00:13]}  Nb3 {[%clk 0:01:14]} 40. a6 {[%clk 0:00:13]}  Nc5 {[%clk 0:01:14]} 0-1


[Site "https://www.chess.com"]

[Event "Titled Tuesday Blitz November 01 Early 2022"]
[White "Acosta Cruz, Oscar Yosimar"]
[Black "Estrada Nieto, Julian"]
[WhiteFideId "5111269"]
[BlackFideId "5101018"]
[WhiteElo "2147"]
[BlackElo "2252"]
[Result "0-1"]
[Round "06"]
[TimeControl "180+1"]
[Date "2022.11.02"]
[WhiteClock "0:02:07"]
[BlackClock "0:02:36"]

1. e4 {[%clk 0:03:00]}  e5 {[%clk 0:02:59]} 2. Nf3 {[%clk 0:02:59]}  Nc6 {[%clk 0:02:59]} 3. d4 {[%clk 0:02:59]}  exd4 {[%clk 0:02:58]} 4. Bc4 {[%clk 0:02:59]}  Bc5 {[%clk 0:02:56]} 5. c3 {[%clk 0:02:59]}  d6 {[%clk 0:02:55]} 6. cxd4 {[%clk 0:02:58]}  Bb6 {[%clk 0:02:56]} 7. O-O {[%clk 0:02:57]}  Nf6 {[%clk 0:02:56]} 8. h3 {[%clk 0:02:57]}  O-O {[%clk 0:02:55]} 9. Nc3 {[%clk 0:02:56]}  Nxe4 {[%clk 0:02:55]} 10. Nxe4 {[%clk 0:02:46]}  d5 {[%clk 0:02:54]} 11. Bg5 {[%clk 0:02:38]}  Qd7 {[%clk 0:02:53]} 12. Ne5 {[%clk 0:02:21]}  Nxe5 {[%clk 0:02:50]} 13. dxe5 {[%clk 0:02:22]}  dxe4 {[%clk 0:02:41]} 14. Qe2 {[%clk 0:02:17]}  Qf5 {[%clk 0:02:41]} 15. Bh4 {[%clk 0:02:07]}  Qxe5 {[%clk 0:02:38]} 16. Bg3 {[%clk 0:02:07]}  Qxg3 {[%clk 0:02:36]} 0-1


[Site "https://www.chess.com"]

[Event "Titled Tuesday Blitz November 01 Early 2022"]
[White "Adnan, Habib"]
[Black "Bashirli, Saadat"]
[WhiteFideId "11202270"]
[BlackFideId "13429990"]
[WhiteElo "2110"]
[BlackElo "1408"]
[Result "1/2-1/2"]
[Round "06"]
[TimeControl "180+1"]
[Date "2022.11.02"]
[WhiteClock "0:00:28"]
[BlackClock "0:00:10"]

1. d4 {[%clk 0:03:00]}  d5 {[%clk 0:02:58]} 2. c4 {[%clk 0:03:00]}  e6 {[%clk 0:02:58]} 3. g3 {[%clk 0:03:00]}  c6 {[%clk 0:02:55]} 4. Bg2 {[%clk 0:03:00]}  dxc4 {[%clk 0:02:55]} 5. Nf3 {[%clk 0:03:00]}  b5 {[%clk 0:02:54]} 6. O-O {[%clk 0:02:59]}  Bb7 {[%clk 0:02:54]} 7. Ne5 {[%clk 0:02:51]}  Nf6 {[%clk 0:02:53]} 8. b3 {[%clk 0:02:36]}  cxb3 {[%clk 0:02:51]} 9. Qxb3 {[%clk 0:02:27]}  Bd6 {[%clk 0:02:47]} 10. Nc3 {[%clk 0:02:11]}  a6 {[%clk 0:02:42]} 11. a4 {[%clk 0:02:08]}  b4 {[%clk 0:02:32]} 12. a5 {[%clk 0:01:44]}  Qc7 {[%clk 0:02:23]} 13. Nc4 {[%clk 0:01:33]}  O-O {[%clk 0:02:16]} 14. Na4 {[%clk 0:01:20]}  Nbd7 {[%clk 0:02:10]} 15. e4 {[%clk 0:01:16]}  e5 {[%clk 0:02:04]} 16. f4 {[%clk 0:01:12]}  exd4 {[%clk 0:01:42]} 17. e5 {[%clk 0:01:07]}  Nxe5 {[%clk 0:01:42]} 18. Nxd6 {[%clk 0:00:57]}  Qxd6 {[%clk 0:01:40]} 19. fxe5 {[%clk 0:00:57]}  Qxe5 {[%clk 0:01:40]} 20. Bf4 {[%clk 0:00:57]}  Qb5 {[%clk 0:01:29]} 21. Rfc1 {[%clk 0:00:50]}  Nd7 {[%clk 0:01:20]} 22. Bd6 {[%clk 0:00:40]}  Rfe8 {[%clk 0:01:18]} 23. Qxb4 {[%clk 0:00:39]}  Qxb4 {[%clk 0:01:10]} 24. Bxb4 {[%clk 0:00:40]}  Ne5 {[%clk 0:01:09]} 25. Nc5 {[%clk 0:00:39]}  Rab8 {[%clk 0:01:02]} 26. Re1 {[%clk 0:00:38]}  f6 {[%clk 0:00:58]} 27. Rad1 {[%clk 0:00:36]}  Red8 {[%clk 0:00:54]} 28. Ne6 {[%clk 0:00:35]}  Rd7 {[%clk 0:00:32]} 29. Rxd4 {[%clk 0:00:33]}  Rxd4 {[%clk 0:00:29]} 30. Nxd4 {[%clk 0:00:33]}  Nd3 {[%clk 0:00:27]} 31. Bd6 {[%clk 0:00:30]}  Rd8 {[%clk 0:00:25]} 32. Rd1 {[%clk 0:00:29]}  Rxd6 {[%clk 0:00:12]} 33. Rxd3 {[%clk 0:00:29]}  c5 {[%clk 0:00:12]} 34. Bxb7 {[%clk 0:00:29]}  cxd4 {[%clk 0:00:13]} 35. Kg2 {[%clk 0:00:28]}  Kf7 {[%clk 0:00:13]} 36. Kf3 {[%clk 0:00:29]}  Ke6 {[%clk 0:00:13]} 37. Ke4 {[%clk 0:00:29]}  f5+ {[%clk 0:00:14]} 38. Kf4 {[%clk 0:00:30]}  Kf6 {[%clk 0:00:14]} 39. h4 {[%clk 0:00:30]}  g6 {[%clk 0:00:12]} 40. Rb3 {[%clk 0:00:28]}  h6 {[%clk 0:00:12]} 41. Rb6 {[%clk 0:00:28]}  g5+ {[%clk 0:00:12]} 42. hxg5+ {[%clk 0:00:28]}  hxg5+ {[%clk 0:00:13]} 43. Kf3 {[%clk 0:00:29]}  Rxb6 {[%clk 0:00:08]} 44. axb6 {[%clk 0:00:30]}  Ke6 {[%clk 0:00:09]} 45. Bd5+ {[%clk 0:00:29]}  Kd6 {[%clk 0:00:08]} 46. b7 {[%clk 0:00:29]}  Kc7 {[%clk 0:00:09]} 47. Ke2 {[%clk 0:00:30]}  a5 {[%clk 0:00:08]} 48. Kd3 {[%clk 0:00:30]}  a4 {[%clk 0:00:07]} 49. Kxd4 {[%clk 0:00:31]}  a3 {[%clk 0:00:08]} 50. Ke5 {[%clk 0:00:28]}  f4 {[%clk 0:00:08]} 51. gxf4 {[%clk 0:00:27]}  gxf4 {[%clk 0:00:09]} 52. Kxf4 {[%clk 0:00:28]}  a2 {[%clk 0:00:09]} 53. Bxa2 {[%clk 0:00:28]}  Kxb7 {[%clk 0:00:10]} 1/2-1/2


[Site "https://www.chess.com"]